Cogmind - Beta 9.3 @@@ ROGUE MODE // 2019.12.26 @ 08:12:03 Player: alice_fexa Result: Destroyed by G-73 Enforcer with Phase Gun Performance ------------- Evolutions (9) 4500 Regions Visited (27) 5400 Robots Destroyed (344) 1720 Value Destroyed (15883) 15883 Prototype IDs (57) 1140 Alien Tech Used (3) 600 Bonus (11149) 11149 TOTAL SCORE: 40392 Bonus ------- Triggered High Security 500 High Alert Combat Kills 3410 Follower Combat Kills 2066 Met Data Miner 300 Met Zhirov 300 Met Warlord at Base 500 MAIN.C Attacked Warlord 500 Built Enhanced Grunts 300 A7 Reached Mainframe 300 Met R17 at Cetus 500 Read Decrypted Archives 300 Hacked Protovariant 500 Met R17 at Research 2000 Friendly Fire -327 Cogmind --------- Core Integrity 0/1600 Matter 169/300 Energy 65/100 System Corruption 5% Temperature Cool (9) Movement Core (50) Location -1/Access Parts ------- > --- POWER (2) -------- (None) > --- PROPULSION (6) --- (None) > --- UTILITY (14) ----- (None) > --- WEAPON (4) ------- (None) > --- INVENTORY (4) ---- Vortex Chain Reactor Enhanced Nova Cannon Compact Tesla Bomb Launcher Peak State ------------ > --- POWER ------------ Light Quantum Reactor Light Quantum Reactor > --- PROPULSION ------- Biometal Heavy Treads Biometal Leg Wheel Compact Wheel High-density Centrium Wheel > --- UTILITY ---------- Advanced Cooling System High-capacity Storage Unit High-capacity Storage Unit High-capacity Storage Unit High-capacity Storage Unit Experimental Energy Well Experimental Optical Array Advanced Sensor Array Experimental Signal Interpreter Advanced Targeting Computer Experimental Target Analyzer Light Regenerative Plating Light Regenerative Plating Improved System Restoration Module > --- WEAPON ----------- Gamma Rifle Gamma Rifle Gamma Rifle Enhanced Nova Cannon > --- INVENTORY -------- Light Quantum Reactor Vortex Chain Reactor Advanced Heavy Treads Advanced Heavy Siege Treads Advanced Heavy Siege Treads Advanced Heavy Siege Treads Advanced Cooling System Matter Compressor Advanced Sensor Array Advanced Sensor Array SHELL Armor Experimental Thermal Shield Improved Energy Mantle Improved System Restoration Module Gamma Rifle Vortex Shotgun Vortex Shotgun Enhanced Quantum Rifle Heavy Quantum Rifle HERF Cannon Compact HERF Cannon Improved Matter Neutralizer Enhanced Nova Cannon Improved KE Penetrator Compact Tesla Bomb Launcher Enhanced Gamma Bomb Array Mini Smartbomb Launcher Micro-nuke Launcher Advanced Micro-nuke Launcher [Rating: 187] Favorites ----------- Power Light Antimatter Reactor Engine Light Angular Momentum Engine Power Core Micro Fission Core Reactor Light Antimatter Reactor Propulsion Compact Wheel Treads Advanced Treads Leg Biometal Leg Wheel Compact Wheel Utility High-capacity Storage Unit Device Long-range Sensor Array Storage High-capacity Storage Unit Processor Advanced Signal Interpreter Hackware Improved Hacking Suite Protection Medium Regenerative Plating Weapon Katana Energy Gun Heavy Beamcaster Energy Cannon Enhanced Nova Cannon Ballistic Gun Improved KE Penetrator Launcher Micro-nuke Launcher Slashing Weapon Katana Piercing Weapon Plasma Lance Build | -11 -10 -9 -8 -7 -7 -7 -7 -6 -6 -6 -6 -6 -6 -5 -5 -5 -5 -4 -4 -4 -4 -4 -3 -3 -3 -2 -1 ------- Run | Scr Mat Mat Mat Fac Low Low Dat Pro Fac Ext Cet Arc Hub Fac Upp Upp War Pro Fac Upp Upp Zhi Pro Res Tes Res Acc Slots Evolved 18 | . . 2 2 2 . . . . 2 . . . . 2 . . . . 2 . . . . 2 . 2 2 Power 1 | . . . . . . . . . . . . . . 1 . . . . . . . . . . . . . Propulsion 3 | . . . 1 . . . . . . . . . . . . . . . 1 . . . . 1 . . . Utility 12 | . . 2 1 1 . . . . 1 . . . . 1 . . . . 1 . . . . 1 . 2 2 Weapon 2 | . . . . 1 . . . . 1 . . . . . . . . . . . . . . . . . . Parts Attached 416 | 6 14 24 16 17 7 3 . 9 5 19 9 . 1 27 3 1 13 8 17 2 . 3 . 21 74 40 77 Power 50 | 1 3 4 1 2 . . . 1 . 3 1 . . 4 . . 1 . 2 . . . . 2 5 9 11 Engine 13 | 1 3 4 . 1 . . . . . 3 . . . 1 . . . . . . . . . . . . . Core 7 | . . . 1 1 . . . . . . 1 . . 3 . . 1 . . . . . . . . . . Reactor 30 | . . . . . . . . 1 . . . . . . . . . . 2 . . . . 2 5 9 11 Propulsion 76 | 2 2 8 2 3 . 1 . . . 2 2 . . 8 . . 3 1 5 . . . . 2 14 5 16 Treads 25 | 1 1 5 1 1 . 1 . . . 2 2 . . 1 . . 2 . 1 . . . . 1 3 2 1 Leg 2 | . . . . . . . . . . . . . . . . . . . . . . . . . . . 2 Wheel 49 | 1 1 3 1 2 . . . . . . . . . 7 . . 1 1 4 . . . . 1 11 3 13 Hover . | . . . . . . . . . . . . . . . . . . . . . . . . . . . . Flight . | . . . . . . . . . . . . . . . . . . . . . . . . . . . . Utility 136 | 1 3 4 5 7 5 1 . 3 2 6 1 . 1 11 1 1 6 2 7 2 . 3 . 6 32 12 14 Device 79 | . 1 2 1 5 4 1 . 2 . 1 . . 1 9 . 1 3 2 5 2 . 2 . 3 25 5 4 Storage 13 | 1 2 1 2 . . . . 1 1 . . . . . . . 2 . 1 . . . . . 1 . 1 Processor 10 | . . 1 . . . . . . . . . . . 2 . . 1 . 1 . . . . . 1 2 2 Hackware 5 | . . . . . . . . . 1 . . . . . 1 . . . . . . . . 1 1 . 1 Protection 29 | . . . 2 2 1 . . . . 5 1 . . . . . . . . . . 1 . 2 4 5 6 Artifact . | . . . . . . . . . . . . . . . . . . . . . . . . . . . . Weapon 154 | 2 6 8 8 5 2 1 . 5 3 8 5 . . 4 2 . 3 5 3 . . . . 11 23 14 36 Energy Gun 51 | 2 5 4 . 1 . . . . 1 5 2 . . . . . 1 1 2 . . . . 3 7 3 14 Energy Cannon 15 | . . 1 . . . . . . . . . . . . . . . . . . . . . 1 1 4 8 Ballistic Gun 44 | . 1 3 5 2 1 . . 1 2 3 3 . . 1 . . 1 2 1 . . . . 4 6 5 3 Ballistic Cannon . | . . . . . . . . . . . . . . . . . . . . . . . . . . . . Launcher 26 | . . . 1 1 1 . . 2 . . . . . 1 1 . . 1 . . . . . 1 4 2 11 Special Weapon . | . . . . . . . . . . . . . . . . . . . . . . . . . . . . Impact Weapon . | . . . . . . . . . . . . . . . . . . . . . . . . . . . . Slashing Weapon 11 | . . . 2 1 . 1 . 2 . . . . . 2 1 . 1 1 . . . . . . . . . Piercing Weapon 7 | . . . . . . . . . . . . . . . . . . . . . . . . 2 5 . . Special Melee Weapon . | . . . . . . . . . . . . . . . . . . . . . . . . . . . . Unidentified Prototypes 33 | . . 1 1 1 . 1 . 1 . . 2 . . 1 . . 4 . 2 . . 2 . 3 11 3 . Parts Lost 71 | . 4 3 1 . . . . . 2 1 . . . 6 . . . 5 1 . . . . 2 9 5 32 Power 6 | . 1 . . . . . . . . 1 . . . 2 . . . . . . . . . . . 1 1 Propulsion 22 | . 1 1 . . . . . . . . . . . 2 . . . 1 1 . . . . . 6 2 8 Utility 16 | . . . 1 . . . . . . . . . . 1 . . . . . . . . . 2 2 . 10 Weapon 27 | . 2 2 . . . . . . 2 . . . . 1 . . . 4 . . . . . . 1 2 13 Highest Loss Streak 14 | . 2 2 1 . . . . . 2 1 . . . 3 . . . 4 1 . . . . 1 3 2 14 Average Slot Usage (%) 95 | . 94 96 98 99 100 100 100 100 99 99 100 100 100 98 100 100 99 91 94 95 95 95 95 94 93 91 90 Engine 1 | . 14 11 2 . 7 7 7 4 . 5 2 . . . . . . . . . . . . . . . . Core 2 | . . . 6 6 . . . . . . 3 6 6 10 11 11 11 11 5 . . . . . . . . Reactor 4 | . . . . . . . . 2 6 . . . . . . . . . 4 10 10 10 10 9 8 7 6 Treads 7 | . 14 11 9 7 7 10 14 14 12 12 12 12 12 10 11 11 11 11 6 5 5 5 5 4 3 3 2 Wheel 13 | . 13 9 18 14 15 14 14 14 12 12 12 12 12 10 11 11 11 4 14 15 15 15 15 17 17 12 13 Device 9 | . 9 11 8 15 15 14 14 14 12 6 6 6 12 9 11 11 8 5 5 5 5 5 5 4 10 14 13 Storage 16 | . 15 22 18 15 15 14 14 14 13 18 18 18 18 16 16 16 16 16 17 20 20 20 20 18 18 16 16 Processor 10 | . . 8 9 7 7 7 7 7 6 6 6 6 6 11 11 11 13 16 16 15 15 15 15 13 10 10 12 Hackware 2 | . . . . . . . . . 5 6 6 6 6 5 5 5 5 5 5 5 5 5 5 5 1 . . Protection 3 | . . . 8 7 7 7 7 7 4 5 6 6 . . . . . . . . . . . 2 3 6 6 Energy Gun 3 | . 15 12 . . 7 3 . . 5 6 4 . . . . . . . 4 5 5 5 5 4 3 3 3 Ballistic Gun 11 | . 11 6 15 15 14 14 14 14 12 11 13 18 18 16 16 16 16 13 9 10 10 10 10 8 10 8 5 Slashing Weapon 3 | . . . 2 6 . 3 7 6 6 6 6 6 6 4 5 5 4 4 5 5 5 5 5 2 . . . Naked Turns 40 | . . . . . . . . . . . . . . . . . . . . . . . . . . . 40 Heaviest Build 219 | 13 24 49 66 75 76 76 74 96 128 132 134 134 134 138 130 136 136 138 171 171 171 171 171 189 210 216 219 Greatest Support 80 | 20 20 23 24 24 24 24 24 24 24 52 24 24 24 50 26 26 30 57 80 42 42 42 42 70 60 75 75 Greatest Overweight (x) 20 | 1 1 4 2 3 3 3 3 3 5 5 5 5 5 13 4 5 5 7 7 4 4 4 4 4 20 12 5 Average Overweight (x) 3 | . . 3 1 2 3 2 3 3 4 4 5 5 5 5 4 4 4 6 3 4 4 4 4 2 3 3 2 Largest Inventory Capacity 36 | 6 10 16 18 18 18 18 18 20 28 28 28 28 28 28 28 28 28 28 36 36 36 36 36 36 36 36 36 Average Capacity 29 | 4 8 16 17 18 18 18 18 18 22 28 28 28 28 28 28 28 28 28 31 36 36 36 36 36 36 36 35 Most Carried 36 | 4 10 16 18 18 18 18 17 19 28 28 28 28 28 28 28 28 28 28 36 36 36 36 36 36 36 36 36 Average Carried 28 | 2 5 15 17 17 18 17 17 17 20 27 27 28 28 27 28 28 27 25 31 36 36 35 36 35 35 35 33 Final Capacity 36 | 6 10 16 18 18 18 18 18 20 28 28 28 28 28 28 28 28 28 28 36 36 36 36 36 36 36 36 4 Final Carried 36 | 4 10 16 18 18 18 17 17 19 28 28 28 28 28 28 28 28 28 26 36 36 36 36 36 36 36 36 4 Class Distribution -------------------- 38% | Hauler-Mutant 19% | Scavenger-Mutant 13% | Mutant 7% | Hauler-Gunner 5% | Hauler-Skirmisher 4% | Hauler-Tank 4% | Scavenger-Skirmisher Dominant Class ---------------- Mutant | -10/Materials Scavenger-Mutant | -9/Materials Mutant | -8/Materials Mutant | -7/Factory Skirmisher | -7/Lower Caves Mutant | -7/Lower Caves Mutant | -7/Data Miner Mutant | -6/Proximity Caves Hauler-Mutant | -6/Factory Hauler-Tank | -6/Extension Commander-Tank | -6/Cetus Hauler-Tank | -6/Archives Hauler-Skirmisher | -6/Hub_04(d) Scavenger-Mutant | -5/Factory Scavenger-Mutant | -5/Upper Caves Scavenger-Mutant | -5/Upper Caves Scavenger-Mutant | -5/Warlord Hauler-Mutant | -4/Proximity Caves Hauler-Gunner | -4/Factory Hauler-Mutant | -4/Upper Caves Hauler-Mutant | -4/Upper Caves Hauler-Mutant | -4/Zhirov Hauler-Mutant | -3/Proximity Caves Hauler-Gunner | -3/Research Hauler-Mutant | -3/Testing Hauler-Mutant | -2/Research Scavenger-Skirmisher | -1/Access Resources | -11 -10 -9 -8 -7 -7 -7 -7 -6 -6 -6 -6 -6 -6 -5 -5 -5 -5 -4 -4 -4 -4 -4 -3 -3 -3 -2 -1 ----------- Run | Scr Mat Mat Mat Fac Low Low Dat Pro Fac Ext Cet Arc Hub Fac Upp Upp War Pro Fac Upp Upp Zhi Pro Res Tes Res Acc Matter Collected 9254 | 221 239 274 416 241 236 56 . 192 146 666 218 . 68 857 70 . 140 235 357 20 . 40 . 344 1594 1026 1598 Remotely . | . . . . . . . . . . . . . . . . . . . . . . . . . . . . Salvage Created 18060 | . 761 1208 557 208 280 32 . 49 146 977 263 . 108 1491 56 . . 196 839 . . 129 . 372 2293 1761 6334 Parts 825 | . 38 54 39 9 8 . . 9 7 49 13 . 5 76 4 . . 13 27 . . . . 18 123 60 273 Haulers Intercepted 9 | . 1 3 1 . . . . . . . . . . . . . . . 1 . . . . . . 1 2 Recyclers Shooed 10 | . 3 . . . . . . . 2 . . . . 1 . . . . 2 . . . . . . . 2 Parts Field Recycled . | . . . . . . . . . . . . . . . . . . . . . . . . . . . . Retrieved Matter . | . . . . . . . . . . . . . . . . . . . . . . . . . . . . Parts Self-Destructed 98 | . . . . . 8 . . 15 . . . . . . 2 1 64 8 . . . . . . . . . Prevented 27 | . . . . . 1 . . . . . . . . . . 1 25 . . . . . . . . . . Kills | -11 -10 -9 -8 -7 -7 -7 -7 -6 -6 -6 -6 -6 -6 -5 -5 -5 -5 -4 -4 -4 -4 -4 -3 -3 -3 -2 -1 ------- Run | Scr Mat Mat Mat Fac Low Low Dat Pro Fac Ext Cet Arc Hub Fac Upp Upp War Pro Fac Upp Upp Zhi Pro Res Tes Res Acc Combat Hostiles Destroyed 250 | . 13 16 11 2 10 . . 5 . 17 6 . 1 18 4 . . 7 5 . . . . 7 36 18 74 Melee 5 | . . . 2 . . . . . . 1 . . . 1 . . . . 1 . . . . . . . . Guns 174 | . 13 10 7 2 5 . . . . 15 6 . 1 11 . . . 2 4 . . . . 4 32 18 44 Cannons 7 | . . 4 . . . . . . . . . . . . . . . . . . . . . . . . 3 AOE 50 | . . 2 2 . 5 . . 5 . . . . . 6 4 . . 5 . . . . . 3 3 . 15 Classes Destroyed 23 | . 8 3 . 1 . 1 . . . 1 . . . 1 . . . 1 . . . . . . 1 4 2 Worker 23 | . 1 4 . . . . . . . . . . . 3 . . . . . . . . . 1 7 1 6 Builder 6 | . . . . . . . . . . . . . . 4 . . . . 1 . . . . . . . 1 Tunneler 3 | . 1 . . . . . . . . . . . . 1 . . . . . . . . . . . . 1 Hauler 9 | . 1 3 1 . . . . . . . . . . . . . . . 1 . . . . . . 1 2 Recycler 19 | . 2 2 . 1 . . . . 1 . . . . 5 . . . . 3 . . . . . . . 5 Minesweeper 2 | . . . . . . 1 . . . . . . . . . . . 1 . . . . . . . . . Mechanic 1 | . . . . . . . . . . . . . . . . . . . . . . . . . . 1 . Operator 5 | . 2 1 . . . . . . . . . . . 1 . . . . . . . . . . 1 . . Watcher 24 | . 1 2 2 . . . . . 1 1 . . 1 1 . . . . 1 . . . . . 3 3 8 Swarmer 68 | . 3 . 3 . 2 . . 5 . 2 3 . . 9 4 . . 5 . . . . . 4 6 . 22 Saboteur 1 | . . . . . . . . . . . . . . . . . . . . . . . . . . . 1 Grunt 76 | . 10 11 3 . 2 . . . . 6 1 . . 3 . . . . . . . . . 1 7 7 25 Brawler 6 | . . 1 . . 3 . . . . . . . . . . . . . . . . . . . 1 . 1 Duelist 6 | . . 1 . . 1 . . . . . . . . . . . . . . . . . . . 1 1 2 Protector 1 | . . . . . . . . . . . . . . . . . . . . . . . . . . . 1 Researcher 1 | . . . . . . . . . . . . . . . . . . . . . . . . . 1 . . Sentry 27 | . . 3 5 1 1 . . . . 6 . . 1 . . . . . 1 . . . . 2 . 5 2 Demolisher 2 | . . . . . . . . . . . . . . . . . . . . . . . . . . 2 . Hunter 14 | . . . . . . . . . . . . . . . . . . 2 . . . . . . 4 . 8 Programmer 39 | . . . . 1 1 . . . . 1 . . . 6 . . . . 4 . . . . . 17 . 9 Behemoth 1 | . . . . . . . . . . 1 . . . . . . . . . . . . . . . . . Cetus Guard 1 | . . . . . . . . . . . 1 . . . . . . . . . . . . . . . . Striker 1 | . . . . . . . . . . . . . . . . . . . . . . . . . . 1 . Executioner 4 | . . . . . . . . . . . . . . . . . . . . . . . . . . 2 2 Decomposer 1 | . . . . . . . . . . . . . . . 1 . . . . . . . . . . . . Thug 2 | . . . . . . . . . . 1 . . . . . . . . . . . . . . . . 1 Savage 1 | . . . . . . . . . . . 1 . . . . . . . . . . . . . . . . Best Kill Streak 15 | . 5 7 3 1 9 1 . 3 1 3 3 . 1 7 4 . . 5 3 . . . . 3 7 7 15 Combat Bots Only 9 | . 4 5 3 1 9 . . 3 . 3 3 . 1 5 4 . . 5 2 . . . . 3 6 6 9 Max Kills in Single Turn 5 | . 1 2 2 1 3 1 . 2 1 1 1 . 1 5 2 . . 2 1 . . . . 3 2 1 5 Gunslinging 1 | . . . . . . . . . . . . . . . . . . . . . . . . . 1 . 1 Exploded 4 | . . 1 2 . 2 . . 2 . . . . . 4 2 . . 2 . . . . . 3 1 . 2 Melee 1 | . . . 1 . . . . . . 1 . . . 1 . . . . 1 . . . . . . . . Uniques/NPCs Destroyed . | . . . . . . . . . . . . . . . . . . . . . . . . . . . . Combat | -11 -10 -9 -8 -7 -7 -7 -7 -6 -6 -6 -6 -6 -6 -5 -5 -5 -5 -4 -4 -4 -4 -4 -3 -3 -3 -2 -1 -------- Run | Scr Mat Mat Mat Fac Low Low Dat Pro Fac Ext Cet Arc Hub Fac Upp Upp War Pro Fac Upp Upp Zhi Pro Res Tes Res Acc Damage Taken 21755 | . 546 860 311 289 384 . . 213 243 480 46 260 16 1193 88 . . 1056 271 . . . . 443 2992 2840 9224 Core 2891 | . 70 203 45 14 58 . . 12 . 54 23 . 5 169 16 . . 57 46 . . . . 109 242 167 1601 Absorbed by Shields 1029 | . . . . . . . . . . 243 45 . . . . . . 132 . . . . . . 461 148 . Reduced by Siege Mode 686 | . . . . . . . . . . . . . . . . . . . 10 . . . . . 164 124 388 Core Remaining (%) 81 | 100 72 49 91 . . . . 88 . . . . 90 . . . . 75 . . . . 96 . 73 82 . Volleys Fired 763 | . 89 75 26 11 11 . . 6 3 51 14 2 5 46 2 . . 17 23 . . . . 15 94 104 169 Largest 4 | . 2 2 2 3 3 . . 2 3 3 3 3 3 3 1 . . 3 3 . . . . 3 4 4 4 Hottest 364 | . 100 108 50 130 141 . . 50 130 141 141 100 100 100 80 . . 144 147 . . . . 162 200 289 364 Shots Fired 1884 | . 169 149 51 24 33 . . 8 5 141 42 6 15 134 2 . . 39 57 . . . . 38 262 253 456 Gun 1651 | . 169 126 50 24 28 . . 4 5 141 42 6 15 132 . . . 34 57 . . . . 37 255 154 372 Cannon 178 | . . 23 . . . . . . . . . . . . . . . . . . . . . . 3 95 57 Launcher 55 | . . . 1 . 5 . . 4 . . . . . 2 2 . . 5 . . . . . 1 4 4 27 Special . | . . . . . . . . . . . . . . . . . . . . . . . . . . . . Kinetic 1030 | . 80 45 50 22 17 . . 4 4 82 32 6 15 132 . . . 30 36 . . . . 28 175 110 162 Thermal 638 | . 89 74 . 2 11 . . . 1 43 10 . . . . . . 4 21 . . . . 9 83 139 152 Explosive 34 | . . . 1 . 5 . . 4 . . . . . 2 2 . . 5 . . . . . 1 4 . 10 Electromagnetic 182 | . . 30 . . . . . . . 16 . . . . . . . . . . . . . . . 4 132 Robot Hit Streak 66 | . 10 14 7 11 6 . . 3 6 17 11 5 8 14 5 . . 12 13 . . . . 14 66 42 39 Robot Miss Streak 6 | . 3 3 6 2 3 . . 1 1 4 2 1 2 3 . . . 4 2 . . . . 2 4 3 6 Penetration Max 2 | . . . . . . . . . . 1 2 1 . 1 . . . . 1 . . . . 1 1 2 1 Secondary Targets 30 | . . . . . . . . . . 5 2 . . 2 . . . 1 . . . . . 1 4 . 15 Max Gunslinging Chain 1 | . . . . . . . . . . 1 1 . . 1 . . . 1 . . . . . 1 1 . 1 Shots Hit Robots 1372 | . 116 114 34 18 29 1 . 5 5 101 31 5 10 88 3 . . 23 49 . . 3 . 30 210 160 337 Core Hits 713 | . 43 49 23 7 31 . . 6 4 42 16 2 3 50 4 . . 17 22 . . 1 . 17 108 64 204 Critical Hits 125 | . 2 . . . . . . 1 . 1 . . 2 12 . . . 2 8 . . . . 4 28 27 38 Critical Kills 43 | . 1 . . . . . . . . . . . . 3 . . . . 2 . . . . 2 13 10 12 Critical Parts Destroyed 77 | . 1 . . . . . . 1 . 1 . . 2 9 . . . 2 6 . . . . 1 14 15 25 Melee Attacks 146 | . . . 8 6 . 3 . 2 17 2 . . 1 32 2 . . 17 14 . 6 3 9 3 21 . . Impact . | . . . . . . . . . . . . . . . . . . . . . . . . . . . . Slashing 125 | . . . 8 6 . 3 . 2 17 2 . . 1 32 2 . . 17 14 . 6 3 9 3 . . . Piercing 21 | . . . . . . . . . . . . . . . . . . . . . . . . . 21 . . Sneak Attacks 18 | . . . . 1 . 1 . . 1 . . . . 8 1 . . 1 3 . . . . 1 1 . . Combat Hostiles . | . . . . . . . . . . . . . . . . . . . . . . . . . . . . Follow-up Attacks . | . . . . . . . . . . . . . . . . . . . . . . . . . . . . Damage Inflicted 44489 | . 1226 1817 769 511 1213 106 . 454 202 2240 782 191 175 3778 650 . . 1423 1581 . . 295 . 1046 6791 5288 13951 Guns 28182 | . 1226 1265 508 383 446 . . 39 72 2206 782 191 175 2366 . . . 430 1148 . . . . 651 5777 3175 7342 Cannons 3536 | . . 329 . . . . . . . . . . . . . . . . . . . . . . . 1764 1443 Explosions 10164 | . . 223 100 . 767 . . 415 . . . . . 677 551 . . 905 53 . . . . 272 689 349 5163 Melee 2604 | . . . 161 128 . 106 . . 130 34 . . . 735 99 . . 88 380 . . 295 . 123 325 . . Ramming 3 | . . . . . . . . . . . . . . . . . . . . . . . . . . . 3 Kinetic 15688 | . 430 377 508 352 171 . . 39 38 1185 585 191 175 2366 . . . 337 672 . . . . 518 3070 2160 2514 Thermal 13054 | . 796 1074 . 31 275 . . . 34 805 197 . . . . . . 93 476 . . . . 133 2707 2779 3654 Explosive 6750 | . . . 100 . 767 . . 415 . . . . . 526 551 . . 905 53 . . . . 272 689 . 2472 Electromagnetic 6390 | . . 366 . . . . . . . 216 . . . 151 . . . . . . . . . . . 349 5308 Impact . | . . . . . . . . . . . . . . . . . . . . . . . . . . . . Slashing 2279 | . . . 161 128 . 106 . . 130 34 . . . 735 99 . . 88 380 . . 295 . 123 . . . Piercing 325 | . . . . . . . . . . . . . . . . . . . . . . . . . 325 . . Highest Corruption 11 | . . . . 3 3 3 3 3 . . . . . 3 1 1 7 4 1 1 . . . 1 11 . 5 Average Corruption 3 | . . . . 1 3 3 3 3 . . . . . 1 1 1 4 4 1 1 . . . 1 5 . 2 Corruption Purged 32 | . . . . . . . . . . . . . . 6 . 1 . . . 1 . . . 1 17 . 6 Effects 144 | . . . . 3 7 7 1 12 . . . . . 15 2 . 1 9 3 . . . . 1 71 . 12 Message Errors 42 | . . . . 1 2 4 1 5 . . . . . 4 . . 1 2 3 . . . . 1 15 . 3 Matter Fused 21 | . . . . . 2 2 . 4 . . . . . 2 . . . 1 . . . . . . 10 . . Heat Flow Errors 11 | . . . . . 3 . . 1 . . . . . 1 . . . 1 . . . . . . 4 . 1 Energy Discharges 13 | . . . . . . . . . . . . . . 4 1 . . 2 . . . . . . 6 . . Parts Rejected 1 | . . . . . . . . . . . . . . . . . . . . . . . . . 1 . . Data Loss (minor) 18 | . . . . 2 . 1 . 2 . . . . . 2 1 . . 2 . . . . . . 7 . 1 Data Loss (major) 2 | . . . . . . . . . . . . . . . . . . . . . . . . . 2 . . Misfires 1 | . . . . . . . . . . . . . . . . . . . . . . . . . 1 . . Misdirections 2 | . . . . . . . . . . . . . . . . . . . . . . . . . 2 . . Targeting Errors 30 | . . . . . . . . . . . . . . 2 . . . 1 . . . . . . 21 . 6 Weapon Failures 3 | . . . . . . . . . . . . . . . . . . . . . . . . . 2 . 1 Overload Shots . | . . . . . . . . . . . . . . . . . . . . . . . . . . . . Overflow Damage 1192 | . . . . 74 29 78 . 26 . . . . . 139 126 . . 111 26 . . . . . 52 61 470 Projectiles 82 | . . . . . . . . . . . . . . . . . . . . . . . . . . 61 21 Explosions 718 | . . . . . 29 . . 26 . . . . . 6 45 . . 111 . . . . . . 52 . 449 Melee 392 | . . . . 74 . 78 . . . . . . . 133 81 . . . 26 . . . . . . . . Knockbacks . | . . . . . . . . . . . . . . . . . . . . . . . . . . . . Impact . | . . . . . . . . . . . . . . . . . . . . . . . . . . . . Kinetic . | . . . . . . . . . . . . . . . . . . . . . . . . . . . . Secondary . | . . . . . . . . . . . . . . . . . . . . . . . . . . . . Self-Inflicted Damage 350 | . . 21 . . . . . . . . . . . 56 . . . 44 . . . . . . . 60 169 Shots 16 | . . 2 . . . . . . . . . . . 2 . . . 1 . . . . . . . 5 6 Rammed 2 | . . . . . . . . . . . . . . . . . . . . . . . . . . . 2 Targets Rammed 2 | . . . . . . . . . . . . . . . . . . . . . . . . . . . 2 Kicked . | . . . . . . . . . . . . . . . . . . . . . . . . . . . . Crushed . | . . . . . . . . . . . . . . . . . . . . . . . . . . . . Highest Temperature 371 | . 371 38 6 48 231 . . 106 30 29 . . . 318 64 . . 336 256 . . . . 63 221 345 201 Average Temperature 68 | . 60 17 6 27 99 . . 59 22 10 . . . 83 36 . . 129 78 . . . . 21 71 81 48 Received Heat Transfer 2268 | . 249 348 126 6 36 . . 24 . 123 . . 6 81 . . . . . . . . . 45 221 319 684 Effects 1 | . . . . . . . . . . . . . . . . . . 1 . . . . . . . . . Damage (minor) 1 | . . . . . . . . . . . . . . . . . . 1 . . . . . . . . . Siege Activations 40 | . . . . . . . . . . . . . . . . . . . 1 . . . . 2 13 6 18 Total Turns 648 | . . . . . . . . . . . . . . . . . . . 9 . . . . 30 192 118 299 Longest Duration 61 | . . . . . . . . . . . . . . . . . . . 9 . . . . 16 54 61 41 Robots Corrupted 15 | . . . . . . . . . . 1 . . . . . . . . . . . . . . . . 14 Combat Hostiles 13 | . . . . . . . . . . 1 . . . . . . . . . . . . . . . . 12 Parts Fried 48 | . . . . . . . . . . 4 . . . . . . . . . . . . . . . . 44 Impact Corruptions . | . . . . . . . . . . . . . . . . . . . . . . . . . . . . Robots Melted 1 | . . . . . . . . . . . . . . . . . . . . . . . . . 1 . . Combat Hostiles 1 | . . . . . . . . . . . . . . . . . . . . . . . . . 1 . . Parts Melted 27 | . 6 2 . . 1 . . . . 2 . . . . . . . . . . . . . . 9 2 5 Heat Transferred 18529 | . 2139 2190 . 75 575 . . . 75 1400 296 . . . . . . 148 703 . . . . 185 3957 2775 4011 Parts Sabotaged 2 | . . . . . . . . . . . . . . . . . . . . . . . . . . . 2 Parts Stolen . | . . . . . . . . . . . . . . . . . . . . . . . . . . . . Parts Stripped . | . . . . . . . . . . . . . . . . . . . . . . . . . . . . Power Chain Reactions 7 | . . 4 . . . . . . . . . . . . . . . . . . . . . . . . 3 Missiles Intercepted . | . . . . . . . . . . . . . . . . . . . . . . . . . . . . Alert | -11 -10 -9 -8 -7 -7 -7 -7 -6 -6 -6 -6 -6 -6 -5 -5 -5 -5 -4 -4 -4 -4 -4 -3 -3 -3 -2 -1 ------- Run | Scr Mat Mat Mat Fac Low Low Dat Pro Fac Ext Cet Arc Hub Fac Upp Upp War Pro Fac Upp Upp Zhi Pro Res Tes Res Acc Peak Influence 1954 | . 207 245 242 149 . . . . 269 319 885 828 342 419 . . . . 583 . . . . 167 603 399 1954 Average Influence 260 | . 80 144 142 70 . . . . 108 138 428 527 294 221 . . . . 248 . . . . 26 251 169 968 Maximum Alert Level 5 | . 1 1 1 . . . . . 2 1 3 3 1 2 . . . . 2 . . . . . 2 1 5 Low Security (%) 60 | 100 95 83 83 100 . . . . 72 77 16 . . 40 . . . . 54 . . . . 100 50 74 6 Level 1 22 | . 4 16 16 . . . . . 27 22 36 52 100 57 . . . . . . . . . . 31 25 6 Level 2 9 | . . . . . . . . . . . 37 8 . 1 . . . . 45 . . . . . 18 . 19 Level 3 2 | . . . . . . . . . . . 9 39 . . . . . . . . . . . . . . 15 Level 4 4 | . . . . . . . . . . . . . . . . . . . . . . . . . . . 41 Level 5 . | . . . . . . . . . . . . . . . . . . . . . . . . . . . 4 High Security . | . . . . . . . . . . . . . . . . . . . . . . . . . . . 6 Max Security . | . . . . . . . . . . . . . . . . . . . . . . . . . . . . Squads Dispatched 66 | . 2 4 1 2 . . . . 1 2 . . 1 7 . . . . 2 . . . . 6 18 3 17 Investigation 11 | . 1 . 1 . . . . . . . . . . 3 . . . . . . . . . 4 1 1 . Extermination 20 | . . . . 2 . . . . 1 . . . . 3 . . . . 2 . . . . . 8 . 4 Reinforcement 19 | . 1 4 . . . . . . . 2 . . 1 1 . . . . . . . . . 2 4 2 2 Assault 9 | . . . . . . . . . . . . . . . . . . . . . . . . . 2 . 7 Garrison 7 | . . . . . . . . . . . . . . . . . . . . . . . . . 3 . 4 Intercept . | . . . . . . . . . . . . . . . . . . . . . . . . . . . . Construction Impeded 5 | . . . . . . . . . . 1 . . . 1 . . . . . . . . . . 1 1 1 Haulers Reinforced . | . . . . . . . . . . . . . . . . . . . . . . . . . . . . Stealth | -11 -10 -9 -8 -7 -7 -7 -7 -6 -6 -6 -6 -6 -6 -5 -5 -5 -5 -4 -4 -4 -4 -4 -3 -3 -3 -2 -1 --------- Run | Scr Mat Mat Mat Fac Low Low Dat Pro Fac Ext Cet Arc Hub Fac Upp Upp War Pro Fac Upp Upp Zhi Pro Res Tes Res Acc Distress Signals 27 | . 3 2 2 . . . . . . . 2 . . . . . 1 . 1 . . . . 4 1 8 3 Communications Jammed . | . . . . . . . . . . . . . . . . . . . . . . . . . . . . Distress Signals . | . . . . . . . . . . . . . . . . . . . . . . . . . . . . Times Spotted 408 | . 23 31 16 2 8 . . 7 4 26 25 12 3 17 4 . 2 4 8 . . . 1 10 46 37 122 Peak Tracking Total 18 | . 5 6 4 1 7 . . 3 2 4 5 16 2 4 4 . . 4 2 . . . 1 3 6 7 18 Tactical Retreats 23 | . . 2 . . . . . 1 . 1 1 . 1 1 . . . . 1 . . . 1 . 1 3 10 Traps | -11 -10 -9 -8 -7 -7 -7 -7 -6 -6 -6 -6 -6 -6 -5 -5 -5 -5 -4 -4 -4 -4 -4 -3 -3 -3 -2 -1 ------- Run | Scr Mat Mat Mat Fac Low Low Dat Pro Fac Ext Cet Arc Hub Fac Upp Upp War Pro Fac Upp Upp Zhi Pro Res Tes Res Acc Traps Triggered 24 | . 3 . 1 1 . . . . 1 3 . . . 5 . . . . 1 . . . . 2 5 . 2 Indirectly . | . . . . . . . . . . . . . . . . . . . . . . . . . . . . Trap Hack Attempts . | . . . . . . . . . . . . . . . . . . . . . . . . . . . . Triggered . | . . . . . . . . . . . . . . . . . . . . . . . . . . . . Disarmed . | . . . . . . . . . . . . . . . . . . . . . . . . . . . . Reprogrammed . | . . . . . . . . . . . . . . . . . . . . . . . . . . . . Reused . | . . . . . . . . . . . . . . . . . . . . . . . . . . . . Traps Extracted . | . . . . . . . . . . . . . . . . . . . . . . . . . . . . Installed . | . . . . . . . . . . . . . . . . . . . . . . . . . . . . Triggered 27 | . . . . . 3 . . 1 . . . . . . . 7 11 . . 4 . . . . . . 1 Machines | -11 -10 -9 -8 -7 -7 -7 -7 -6 -6 -6 -6 -6 -6 -5 -5 -5 -5 -4 -4 -4 -4 -4 -3 -3 -3 -2 -1 ---------- Run | Scr Mat Mat Mat Fac Low Low Dat Pro Fac Ext Cet Arc Hub Fac Upp Upp War Pro Fac Upp Upp Zhi Pro Res Tes Res Acc Machines Disabled 25 | . . 1 . . . . . . . 2 . 1 . 6 . . . . 5 . . . . . 5 . 5 Max in Single Turn 2 | . . 1 . . . . . . . 1 . . . 2 . . . . 2 . . . . . 1 . 1 Garrison Access 3 | . . . 1 . . . . . 1 . . . . . . . . . . . . . . . . . 1 Energy Cycler 2 | . . . . . . . . . . . . . . . . . . . . . . . . . . . 2 Machines Sabotaged . | . . . . . . . . . . . . . . . . . . . . . . . . . . . . Garrisons Compromised . | . . . . . . . . . . . . . . . . . . . . . . . . . . . . Overloaded Fab Kills . | . . . . . . . . . . . . . . . . . . . . . . . . . . . . Fab Network Shutdowns 2 | . . . . . . . . . 1 . . . . . . . . . 1 . . . . . . . . Hacking | -11 -10 -9 -8 -7 -7 -7 -7 -6 -6 -6 -6 -6 -6 -5 -5 -5 -5 -4 -4 -4 -4 -4 -3 -3 -3 -2 -1 --------- Run | Scr Mat Mat Mat Fac Low Low Dat Pro Fac Ext Cet Arc Hub Fac Upp Upp War Pro Fac Upp Upp Zhi Pro Res Tes Res Acc Machines Accessed 107 | . 4 3 6 9 . 1 4 . 5 10 3 1 1 14 . . 6 . 11 . . 4 . 4 13 3 5 Terminals 67 | . 4 3 5 5 . . . . 3 9 3 . 1 11 . . . . 6 . . . . 3 10 1 3 Fabricators 9 | . . . . 2 . . . . 1 . . . . 1 . . . . 3 . . . . 1 1 . . Repair Stations 6 | . . . . 1 . . . . . 1 . . . 2 . . . . 1 . . . . . . 1 . Recycling Units . | . . . . . . . . . . . . . . . . . . . . . . . . . . . . Scanalyzers 2 | . . . . 1 . . . . . . . . . . . . . . . . . . . . 1 . . Garrison Access 7 | . . . 1 . . . . . 1 . . . . . . . . . 1 . . . . . 1 1 2 Total Hacks 318 | . 16 6 13 20 . 1 27 . 12 32 12 25 3 32 . . 15 . 32 . . 17 . 11 32 6 6 Successful 203 | . 9 4 9 13 . 1 27 . 8 21 4 25 2 13 . . 15 . 14 . . 17 . 2 18 1 . Failed 114 | . 7 2 4 7 . . . . 4 11 8 . 1 18 . . . . 18 . . . . 9 14 5 6 Catastrophic 18 | . 1 1 . 2 . . . . . 1 1 . . 2 . . . . 2 . . . . 1 2 2 3 Database Lockouts 2 | . . . . . . . . . . . . . . 2 . . . . . . . . . . . . . Manual 128 | . 16 6 10 5 . . . . 6 25 1 1 3 23 . . 1 . 13 . . . . . 16 2 . Terminals 180 | . 16 6 12 10 . . . . 9 30 12 . 3 26 . . . . 16 . . . . 7 25 4 4 Fabricators 28 | . . . . 6 . . . . 2 . . . . 3 . . . . 10 . . . . 4 3 . . Repair Stations 13 | . . . . 2 . . . . . 2 . . . 3 . . . . 5 . . . . . . 1 . Recycling Units . | . . . . . . . . . . . . . . . . . . . . . . . . . . . . Scanalyzers 4 | . . . . 2 . . . . . . . . . . . . . . . . . . . . 2 . . Garrison Access 8 | . . . 1 . . . . . 1 . . . . . . . . . 1 . . . . . 2 1 2 Terminal Hacks 136 | . 3 1 3 4 . 1 27 . 3 11 4 25 1 6 . . 15 . 5 . . 17 . . 9 1 . Record 53 | . . . . . . . 11 . . . 3 25 . . . . 9 . . . . 5 . . . . . Part Schematic 15 | . 1 . . . . . 7 . 1 . . . . 1 . . . . 1 . . 4 . . . . . Robot Schematic 6 | . . . . . . . 6 . . . . . . . . . . . . . . . . . . . . Robot Analysis 4 | . . . . . . . . . . . . . . . . . . . . . . 4 . . . . . Prototype ID Bank 11 | . . . . . . . 3 . . . . . . . . . 4 . . . . 4 . . . . . Open Door 5 | . . . . . . 1 . . . . 1 . . . . . 2 . . . . . . . 1 . . Level Access Points 1 | . . . . . . . . . . . . . 1 . . . . . . . . . . . . . . Branch Access Points 2 | . . . . 1 . . . . . . . . . . . . . . 1 . . . . . . . . Terminal Index 5 | . . . 1 1 . . . . . . . . . 1 . . . . 1 . . . . . 1 . . Fabricator Index 1 | . . . . . . . . . . . . . . . . . . . . . . . . . 1 . . Alert Level 8 | . . . 1 . . . . . . 1 . . . 2 . . . . 2 . . . . . 2 . . Unreport Threat 10 | . 2 1 1 . . . . . 1 3 . . . 1 . . . . . . . . . . . 1 . Locate Traps 6 | . . . . 1 . . . . . 5 . . . . . . . . . . . . . . . . . Recall Investigation 1 | . . . . . . . . . . . . . . 1 . . . . . . . . . . . . . Recall Extermination 2 | . . . . 1 . . . . . . . . . . . . . . . . . . . . 1 . . Recall Reinforcements 2 | . . . . . . . . . . 1 . . . . . . . . . . . . . . 1 . . Zone Layout 3 | . . . . . . . . . 1 1 . . . . . . . . . . . . . . 1 . . Protovariant Controls 1 | . . . . . . . . . . . . . . . . . . . . . . . . . 1 . . Fabricator Hacks 15 | . . . . 2 . . . . 2 . . . . 2 . . . . 5 . . . . 2 2 . . Load Schematic 7 | . . . . 1 . . . . 1 . . . . 1 . . . . 2 . . . . 1 1 . . Build 8 | . . . . 1 . . . . 1 . . . . 1 . . . . 3 . . . . 1 1 . . Repair Station Hacks 6 | . . . . 2 . . . . . 2 . . . 1 . . . . 1 . . . . . . . . Scan Component 4 | . . . . 1 . . . . . 1 . . . 1 . . . . 1 . . . . . . . . Repair 2 | . . . . 1 . . . . . 1 . . . . . . . . . . . . . . . . . Recycling Unit Hacks . | . . . . . . . . . . . . . . . . . . . . . . . . . . . . Scanalyzer 4 | . . . . 2 . . . . . . . . . . . . . . . . . . . . 2 . . Insert Component 3 | . . . . 1 . . . . . . . . . . . . . . . . . . . . 2 . . Analyze 1 | . . . . 1 . . . . . . . . . . . . . . . . . . . . . . . Garrison Access Hacks 2 | . . . 1 . . . . . 1 . . . . . . . . . . . . . . . . . . Seal Access 2 | . . . 1 . . . . . 1 . . . . . . . . . . . . . . . . . . Unauthorized Hacks 96 | . 14 6 11 6 . . . . 4 20 . . 2 15 . . . . 6 . . . . . 10 2 . Terminals 40 | . 6 3 5 3 . . . . 2 8 . . 1 4 . . . . 3 . . . . . 5 . . Track 9 | . 2 . . . . . . . . 4 . . . 1 . . . . . . . . . . 2 . . Assimilate 2 | . 1 . . . . . . . . . . . . . . . . . 1 . . . . . . . . Botnet 29 | . 3 3 5 3 . . . . 2 4 . . 1 3 . . . . 2 . . . . . 3 . . Fabricators . | . . . . . . . . . . . . . . . . . . . . . . . . . . . . Repair Stations . | . . . . . . . . . . . . . . . . . . . . . . . . . . . . Recycling Units . | . . . . . . . . . . . . . . . . . . . . . . . . . . . . Scanalyzers . | . . . . . . . . . . . . . . . . . . . . . . . . . . . . Garrison Access . | . . . . . . . . . . . . . . . . . . . . . . . . . . . . Data Cores Recovered 1 | . . . . . . . . . . . . . . . . . . . . . . . . . 1 . . Used 1 | . . . . . . . . . . . . . . . . . . . . . . . . . 1 . . Hacking Detections 84 | . 3 3 5 8 . . . . 4 8 3 . 1 14 . . . . 11 . . . . 4 12 3 5 Full Trace Events 4 | . . . . . . . . . . . . . . 2 . . . . . . . . . 2 . . . Feedback Events 1 | . . . . . . . . . . . . . . . . . . . . . . . . 1 . . . Corruption 1 | . . . . . . . . . . . . . . . . . . . . . . . . 1 . . . Feedback Blocked . | . . . . . . . . . . . . . . . . . . . . . . . . . . . . Robot Schematics Acquired 6 | . . . . . . . 6 . . . . . . . . . . . . . . . . . . . . Robots Built . | . . . . . . . . . . . . . . . . . . . . . . . . . . . . Matter . | . . . . . . . . . . . . . . . . . . . . . . . . . . . . Time . | . . . . . . . . . . . . . . . . . . . . . . . . . . . . Total Robot Build Rating . | . . . . . . . . . . . . . . . . . . . . . . . . . . . . Part Schematics Acquired 16 | . 1 . . 1 . . 7 . 1 . . . . 1 . . . . 1 . . 4 . . . . . Parts Built 8 | . . . . . . . . . 1 . . . . 1 . . . . 5 . . . . . 1 . . Matter 1363 | . . . . . . . . . 318 . . . . 168 . . . . 592 . . . . . 285 . . Time 473 | . . . . . . . . . 169 . . . . 28 . . . . 200 . . . . . 76 . . Total Part Build Rating 46 | . . . . . . . . . 6 . . . . 4 . . . . 31 . . . . . 5 . . Parts Repaired 2 | . . . . 1 . . . . . 1 . . . . . . . . . . . . . . . . . Time 60 | . . . . 16 . . . . . 44 . . . . . . . . . . . . . . . . . Parts Recycled . | . . . . . . . . . . . . . . . . . . . . . . . . . . . . Recycled Matter . | . . . . . . . . . . . . . . . . . . . . . . . . . . . . Retrieved Matter . | . . . . . . . . . . . . . . . . . . . . . . . . . . . . Retrieved Components . | . . . . . . . . . . . . . . . . . . . . . . . . . . . . Parts Scanalyzed 1 | . . . . 1 . . . . . . . . . . . . . . . . . . . . . . . Part Schematics Acquired 1 | . . . . 1 . . . . . . . . . . . . . . . . . . . . . . . Parts Damaged . | . . . . . . . . . . . . . . . . . . . . . . . . . . . . Bothacking | -11 -10 -9 -8 -7 -7 -7 -7 -6 -6 -6 -6 -6 -6 -5 -5 -5 -5 -4 -4 -4 -4 -4 -3 -3 -3 -2 -1 ------------ Run | Scr Mat Mat Mat Fac Low Low Dat Pro Fac Ext Cet Arc Hub Fac Upp Upp War Pro Fac Upp Upp Zhi Pro Res Tes Res Acc Used RIF Installer . | . . . . . . . . . . . . . . . . . . . . . . . . . . . . Robots Hacked . | . . . . . . . . . . . . . . . . . . . . . . . . . . . . Non-combat . | . . . . . . . . . . . . . . . . . . . . . . . . . . . . Combat . | . . . . . . . . . . . . . . . . . . . . . . . . . . . . Robot Hacks Applied . | . . . . . . . . . . . . . . . . . . . . . . . . . . . . Relay Couplers Released 16 | . . . . . . . . . . . . . . . . . . . . . . . . 4 3 7 2 Machine Destruction 2 | . . . . . . . . . . . . . . . . . . . . . . . . . . . 2 Programmers 14 | . . . . . . . . . . . . . . . . . . . . . . . . 4 3 7 . Robots Rewired 12 | . . . . . . . . . . 12 . . . . . . . . . . . . . . . . . Allies Hacked . | . . . . . . . . . . . . . . . . . . . . . . . . . . . . Hacks Repelled . | . . . . . . . . . . . . . . . . . . . . . . . . . . . . Allies | -11 -10 -9 -8 -7 -7 -7 -7 -6 -6 -6 -6 -6 -6 -5 -5 -5 -5 -4 -4 -4 -4 -4 -3 -3 -3 -2 -1 -------- Run | Scr Mat Mat Mat Fac Low Low Dat Pro Fac Ext Cet Arc Hub Fac Upp Upp War Pro Fac Upp Upp Zhi Pro Res Tes Res Acc Total Allies 38 | . 1 . . . . . . 1 . 24 5 3 . . . . . . 1 . . . . . . 3 . Largest Group 19 | . 1 . . . . . . 1 . 19 18 10 . . . . . . 1 1 . . . . . 3 . Highest-Rated Group 933 | . 10 . . . . . . 94 . 674 814 933 . . . . . . 26 26 . . . . . 138 . Highest-Rated Ally 156 | . 10 . . . . . . 94 . 156 137 137 . . . . . . 26 26 . . . . . 46 . Total Orders 8 | . . . . . . . . . . 4 3 . . . . . . . . . . . . . . 1 . STAY 3 | . . . . . . . . . . 2 1 . . . . . . . . . . . . . . . . FOLLOW 4 | . . . . . . . . . . 2 2 . . . . . . . . . . . . . . . . EXPLORE 1 | . . . . . . . . . . . . . . . . . . . . . . . . . . 1 . Ally Attacks 317 | . . . . . . . . 14 . 84 153 49 . . . . . . . . . . . . . 17 . Total Damage 8900 | . . . . . . . . 400 . 1712 4295 1895 . . . . . . . . . . . . . 598 . Kills 58 | . . . . . . . . 4 . 12 27 13 . . . . . . . . . . . . . 2 . Allies Corrupted . | . . . . . . . . . . . . . . . . . . . . . . . . . . . . Allies Melted 2 | . . . . . . . . . . . . . . . . . 1 . . . . . . . . 1 . Intel | -11 -10 -9 -8 -7 -7 -7 -7 -6 -6 -6 -6 -6 -6 -5 -5 -5 -5 -4 -4 -4 -4 -4 -3 -3 -3 -2 -1 ------- Run | Scr Mat Mat Mat Fac Low Low Dat Pro Fac Ext Cet Arc Hub Fac Upp Upp War Pro Fac Upp Upp Zhi Pro Res Tes Res Acc Robot Analysis Total 4 | . . . . . . . . . . . . . . . . . . . . . . 4 . . . . . Derelict Logs Recovered 6 | . . . . . 1 2 . . . . . . . . . . . 1 . . 2 . . . . . . Drone Launches 3 | . . . . . . . . . . . . . . . . . . . . . . . . . . 3 . Drone Recoveries . | . . . . . . . . . . . . . . . . . . . . . . . . . . . . Exploration | -11 -10 -9 -8 -7 -7 -7 -7 -6 -6 -6 -6 -6 -6 -5 -5 -5 -5 -4 -4 -4 -4 -4 -3 -3 -3 -2 -1 ------------- Run | Scr Mat Mat Mat Fac Low Low Dat Pro Fac Ext Cet Arc Hub Fac Upp Upp War Pro Fac Upp Upp Zhi Pro Res Tes Res Acc Turns Passed 26936 | 45 814 942 571 817 463 328 94 579 1037 1523 611 92 183 2299 528 517 1087 1007 1665 736 532 249 854 1517 2816 2957 2073 Spaces Moved 15681 | 36 460 440 371 602 348 262 79 380 631 743 343 60 75 1337 364 339 671 404 1082 414 313 173 458 1024 1598 1644 1030 Core 74 | 2 . . . . . . . . . . . . . . . . . . . . . . . . . . 72 Treads 549 | 2 59 116 1 7 . . . . . 120 . . . 11 . . 132 1 34 . . . . 2 27 32 5 Legs . | . . . . . . . . . . . . . . . . . . . . . . . . . . . . Wheels 15058 | 32 401 324 370 595 348 262 79 380 631 623 343 60 75 1326 364 339 539 403 1048 414 313 173 458 1022 1571 1612 953 Hover . | . . . . . . . . . . . . . . . . . . . . . . . . . . . . Flight . | . . . . . . . . . . . . . . . . . . . . . . . . . . . . Fastest Speed 50 | 50 80 120 100 110 120 110 120 120 120 130 140 140 140 130 130 130 130 170 113 133 133 133 133 112 112 122 50 Average Speed 129 | 90 105 139 108 111 120 119 120 120 132 147 140 140 140 140 130 132 157 170 127 133 133 133 133 119 120 126 121 Slowest Speed 280 | 160 180 200 185 185 120 120 120 120 140 192 140 140 140 210 130 140 240 205 200 133 133 133 133 185 280 240 240 Overloaded Moves . | . . . . . . . . . . . . . . . . . . . . . . . . . . . . Propulsion Burnouts . | . . . . . . . . . . . . . . . . . . . . . . . . . . . . Robots Hopped 3 | . . . . . . . . . . . 3 . . . . . . . . . . . . . . . . Cave-ins Triggered 1 | . . . . . . . . . . . . . . . . . . 1 . . . . . . . . . Teleports 1 | . . . . . . . . . . . . . . . . . . . . . . . . . . 1 . Exploration Rate (%) 48 | 4 70 39 31 16 55 38 62 41 19 74 81 77 10 31 64 55 86 46 22 66 43 62 66 29 94 42 33 Regions Visited 27 Branch Regions 17 Pre-discovered Areas 5 | . . . . . . . 1 . . . . . . . . . . 1 . . . 3 . . . . . Known Exits Taken 25 | . . 1 1 1 1 1 1 1 1 1 1 1 1 1 1 1 1 1 1 1 1 1 1 1 1 1 . Unknown Exits Taken 2 | 1 1 . . . . . . . . . . . . . . . . . . . . . . . . . . Scrap Searched 15 | . . . . . 2 2 . 2 . . . . . . 1 2 . 3 . 1 . . 2 . . . . Spaces Dug 136 | . . . 2 4 . 2 . 2 15 . . . 1 22 1 . . 15 6 . 6 . 8 1 15 24 12 Terrain Destroyed 783 | . . 9 13 4 29 2 . 30 15 2 8 1 8 79 22 . . 76 86 . 6 . 8 14 61 59 251 Melee 98 | . . . 2 4 . 2 . 2 15 . . . 1 22 1 . . 15 6 . 6 . 8 1 13 . . Projectile 154 | . . . . . . . . . . 2 8 1 7 34 . . . 3 6 . . . . . 15 59 19 AOE 531 | . . 9 11 . 29 . . 28 . . . . . 23 21 . . 58 74 . . . . 13 33 . 232 Actions | -11 -10 -9 -8 -7 -7 -7 -7 -6 -6 -6 -6 -6 -6 -5 -5 -5 -5 -4 -4 -4 -4 -4 -3 -3 -3 -2 -1 --------- Run | Scr Mat Mat Mat Fac Low Low Dat Pro Fac Ext Cet Arc Hub Fac Upp Upp War Pro Fac Upp Upp Zhi Pro Res Tes Res Acc Total 20857 | 45 634 629 487 727 376 270 78 491 804 1081 447 63 140 1631 412 407 704 667 1305 598 420 188 689 1280 2305 2415 1564 Wait 3315 | . 47 46 42 64 6 1 . 87 131 150 62 2 59 159 42 68 . 219 127 183 102 . 223 195 473 577 250 Move 15648 | 35 459 439 370 601 347 261 78 379 630 742 336 59 74 1336 363 338 670 403 1081 413 312 172 457 1023 1597 1643 1030 Hop 3 | . . . . . . . . . . . 3 . . . . . . . . . . . . . . . . Pick Up 184 | 4 16 20 11 10 1 . . 3 15 16 8 . . 8 . . 4 1 19 . . 3 . 7 13 14 11 Fast Attach 147 | 6 6 8 5 5 . 2 . 3 1 2 5 . . 9 . . 8 . 9 . . 4 . 7 32 13 22 Attach 64 | . 4 3 1 3 . 1 . . 4 1 2 . . 3 . . 1 5 2 . . . . 4 5 5 20 Detach 12 | . . . . 1 . . . . . . . . . . . . 2 2 . . . . . 1 . 1 5 Swap 208 | . 4 13 10 9 7 1 . 6 . 16 2 . 1 15 3 1 4 3 6 2 . . . 10 37 23 35 Drop 273 | . 9 25 14 17 4 1 . 5 3 26 15 . . 15 . . 15 . 16 . . 6 . 15 33 34 20 Fire 763 | . 89 75 26 11 11 . . 6 3 51 14 2 5 46 2 . . 17 23 . . . . 15 94 104 169 Melee 146 | . . . 8 6 . 3 . 2 17 2 . . 1 32 2 . . 17 14 . 6 3 9 3 21 . . Ram 2 | . . . . . . . . . . . . . . . . . . . . . . . . . . . 2 Kick . | . . . . . . . . . . . . . . . . . . . . . . . . . . . . Crush . | . . . . . . . . . . . . . . . . . . . . . . . . . . . . Escape Stasis 28 | . . . . . . . . . . 12 . . . 8 . . . . 8 . . . . . . . . Rewire 63 | . . . . . . . . . . 63 . . . . . . . . . . . . . . . . . Trap . | . . . . . . . . . . . . . . . . . . . . . . . . . . . . Miscellaneous 1 | . . . . . . . . . . . . . . . . . . . . . . . . . . 1 . Route ------- -11/Scrapyard -10/Materials (discovered 2 exits: *Mat / [*Min]) -9/Materials (discovered 3 exits: *Mat / *Min x2) -8/Materials -7/Factory (discovered 3 exits: *Fac / *Low x2) -7/Lower Caves -7/Lower Caves (discovered 2 exits: *Fac / *Dat) -7/Data Miner -6/Proximity Caves -6/Factory -6/Extension (discovered 2 exits: *Fac / *Cet) -6/Cetus (discovered 2 exits: *Fac / *Arc) -6/Archives -6/Hub_04(d) (discovered 4 exits: *Fac x4) -5/Factory (discovered 2 exits: *Fac / *Upp) -5/Upper Caves -5/Upper Caves (discovered 2 exits: *Fac / *War) -5/Warlord -4/Proximity Caves -4/Factory (discovered 2 exits: *Upp x2) -4/Upper Caves -4/Upper Caves (discovered 2 exits: *Res / *Zhi) -4/Zhirov -3/Proximity Caves -3/Research (discovered 5 exits: *Res x3 / Arm / *Tes) -3/Testing -2/Research (discovered 2 exits: *Acc x2) -1/Access History --------- Turn | Location | Event 19 | -11/Scrapyard | Discovered new exit (range 16) 46 | -11/Scrapyard | Entered Materials 68 | -10/Materials | Discovered new exit (range 16) 309 | -10/Materials | Build established: Mutant 851 | -10/Materials | Discovered new exit (range 3) 860 | -10/Materials | Entered another Materials area 860 | -9/Materials | Evolved 2 slots: Utility x2 1117 | -9/Materials | Discovered new exit (range 9) 1136 | -9/Materials | Identified exit to Mines 1278 | -9/Materials | Discovered exit to Mines (range 11) 1325 | -9/Materials | Build established: Scavenger-Mutant 1666 | -9/Materials | Core integrity fell below 50% 1775 | -9/Materials | Discovered new exit (range 16) 1801 | -9/Materials | Identified exit to Materials 1802 | -9/Materials | Entered another Materials area 1802 | -8/Materials | Evolved 2 slots: Propulsion x1, Utility x1 1823 | -8/Materials | Build established: Mutant 2352 | -8/Materials | Discovered new exit (range 16) 2372 | -8/Materials | Identified exit to Factory 2373 | -8/Materials | Entered Factory 2373 | -7/Factory | Evolved 2 slots: Utility x1, Weapon x1 2726 | -7/Factory | Discovered new exit (range 14) 2745 | -7/Factory | Identified exit to Factory 2811 | -7/Factory | Repaired Arm. Wheel 2901 | -7/Factory | Identified exit to Lower Caves 3190 | -7/Factory | Entered Lower Caves 3214 | -7/Lower Caves | Attracted the attention of an 0b10 outpost 3271 | -7/Lower Caves | Destroyed 9 combat bots 3439 | -7/Lower Caves | Build established: Skirmisher 3650 | -7/Lower Caves | Discovered new exit (range 5) 3652 | -7/Lower Caves | Identified exit to Lower Caves 3653 | -7/Lower Caves | Entered another Lower Caves area 3666 | -7/Lower Caves | Encountered a Warlord checkpoint 3668 | -7/Lower Caves | Discovered exit to Factory (range 5) 3677 | -7/Lower Caves | Learned Factory terminal intel 3831 | -7/Lower Caves | Found Alien Artifact 3831 | -7/Lower Caves | Identified Core Expander 3831 | -7/Lower Caves | Installed Core Expander, added new Propulsion slot 3887 | -7/Lower Caves | Learned Factory emergency access door positions 3968 | -7/Lower Caves | Discovered new exit (range 10) 3977 | -7/Lower Caves | Identified exit to Data Miner 3981 | -7/Lower Caves | Entered Data Miner 3981 | -7/Data Miner | Discovered new exit (range 6) 4004 | -7/Data Miner | Met Data Miner 4025 | -7/Data Miner | Learned location of Section 7 (-2) 4025 | -7/Data Miner | Acquired the access code to Warlord's prototype stash 4044 | -7/Data Miner | Received God Mode back door access code from Data Miner 4074 | -7/Data Miner | Identified exit to Proximity Caves 4075 | -7/Data Miner | Entered Proximity Caves 4122 | -6/Proximity Caves | Build established: Mutant 4190 | -6/Proximity Caves | Escorted by Enhanced Grunt 4468 | -6/Proximity Caves | Spotted B-75 Beast 4502 | -6/Proximity Caves | Found Prototype Device 4502 | -6/Proximity Caves | Identified Exp. Thermal Shield 4617 | -6/Proximity Caves | Discovered exit to Factory (range 9) 4654 | -6/Proximity Caves | Entered Factory 4654 | -6/Factory | Evolved 2 slots: Utility x1, Weapon x1 4656 | -6/Factory | Loaded intel: 22 terminal locations 4933 | -6/Factory | Build established: Hauler-Mutant 5053 | -6/Factory | Local fabrication network quarantined 5195 | -6/Factory | Fabricated Mni. Smartbomb Launcher (x1) 5330 | -6/Factory | Discovered new exit (range 6) 5336 | -6/Factory | Identified exit to Extension 5691 | -6/Factory | Entered Extension 5820 | -6/Extension | Rescued a captive Derelict 5821 | -6/Extension | Rescued a captive Derelict 6026 | -6/Extension | Repaired Imp. Cooling System 6050 | -6/Extension | Rescued a captive Derelict 6050 | -6/Extension | Rescued a captive Derelict 6178 | -6/Extension | Build established: Hauler-Tank 6233 | -6/Extension | Rescued A7 6249 | -6/Extension | Spotted B-75 Beast 6277 | -6/Extension | Allies destroyed B-75 Beast 6283 | -6/Extension | Spotted B-75 Beast 6302 | -6/Extension | Destroyed B-75 Beast 6956 | -6/Extension | Rescued a captive Derelict 6957 | -6/Extension | Rescued a captive Derelict 7004 | -6/Extension | Rescued a captive Derelict 7005 | -6/Extension | Rescued a captive Derelict 7105 | -6/Extension | Build established: Commander-Tank 7125 | -6/Extension | Rescued a captive Derelict 7135 | -6/Extension | Rescued a captive Derelict 7140 | -6/Extension | Rescued a captive Derelict 7179 | -6/Extension | Discovered new exit (range 10) 7180 | -6/Extension | Discovered new exit (range 6) 7200 | -6/Extension | Identified exit to Cetus 7214 | -6/Extension | Entered Cetus 7214 | -6/Cetus | Accompanied by 18 allies 7219 | -6/Cetus | Acquired a Cetus Manufacturing Module code from A7 7231 | -6/Cetus | Spotted Cetus Guard 7231 | -6/Cetus | Spotted Cetus Guard 7235 | -6/Cetus | Spotted Cetus Guard 7235 | -6/Cetus | Spotted Cetus Guard 7244 | -6/Cetus | Allies destroyed Cetus Guard 7252 | -6/Cetus | Destroyed Cetus Guard 7254 | -6/Cetus | Allies destroyed Cetus Guard 7254 | -6/Cetus | Allies destroyed Cetus Guard 7360 | -6/Cetus | Escorted A7 to Cetus Mainframe 7372 | -6/Cetus | Started Cetus Manufacturing Module 7397 | -6/Cetus | Manufactured an Enhanced Grunt 7422 | -6/Cetus | Manufactured an Enhanced Grunt 7447 | -6/Cetus | Manufactured an Enhanced Grunt 7472 | -6/Cetus | Manufactured an Enhanced Grunt 7497 | -6/Cetus | Manufactured an Enhanced Grunt 7535 | -6/Cetus | P-60 Hacker assimilated allied TO-3SX(b) 7645 | -6/Cetus | Discovered new exit (range 15) 7669 | -6/Cetus | Spotted Cetus Guard 7670 | -6/Cetus | Spotted Cetus Guard 7675 | -6/Cetus | Spotted Cetus Guard 7675 | -6/Cetus | Allies destroyed Cetus Guard 7675 | -6/Cetus | Spotted Cetus Guard 7686 | -6/Cetus | Allies destroyed Cetus Guard 7692 | -6/Cetus | Allies destroyed Cetus Guard 7693 | -6/Cetus | Allies destroyed Cetus Guard 7696 | -6/Cetus | Discovered new exit (range 16) 7705 | -6/Cetus | Met Revision 17 7816 | -6/Cetus | Identified exit to Archives 7825 | -6/Cetus | Entered Archives 7825 | -6/Archives | Accompanied by 7 allies 7830 | -6/Archives | Received a hacking code to weaken MAIN.C 7846 | -6/Archives | Met Zhirov 7852 | -6/Archives | Reinforcements dispatched to Archives 7860 | -6/Archives | Unable to access archive contents 7891 | -6/Archives | Read partially decrypted archive contents 7896 | -6/Archives | Discovered new exit (range 15) 7897 | -6/Archives | Reinforcements dispatched to Archives 7899 | -6/Archives | Zhirov warped through subspace 7915 | -6/Archives | Identified exit to Hub_04(d) 7917 | -6/Archives | Zhirov detonated Archives 7917 | -6/Archives | Entered Hub_04(d) 7930 | -6/Hub_04(d) | Identified exit to Factory 8100 | -6/Hub_04(d) | Entered Factory 8100 | -5/Factory | Evolved 2 slots: Power x1, Utility x1 8101 | -5/Factory | Identified exit to Upper Caves 8339 | -5/Factory | Lost 3 parts (1p1n1w) 9019 | -5/Factory | Central database locked down 9040 | -5/Factory | Build established: Scavenger-Mutant 9156 | -5/Factory | Discovered new exit (range 11) 9195 | -5/Factory | Identified exit to Factory 9878 | -5/Factory | Fabricated Lrn. Sensor Array (x1) 9878 | -5/Factory | Incoming investigation squad redirected 10399 | -5/Factory | Entered Upper Caves 10904 | -5/Upper Caves | Discovered new exit (range 15) 10926 | -5/Upper Caves | Identified exit to Upper Caves 10927 | -5/Upper Caves | Entered another Upper Caves area 10940 | -5/Upper Caves | Discovered exit to Factory (range 11) 11433 | -5/Upper Caves | Discovered new exit (range 8) 11441 | -5/Upper Caves | Identified exit to Warlord 11444 | -5/Upper Caves | Entered Warlord 11492 | -5/Warlord | System corruption cleaned by Quarantine Array 11819 | -5/Warlord | Visited the Vortex Lab 11822 | -5/Warlord | Warlord's base attacked by MAIN.C 11834 | -5/Warlord | Found Prototype Energy Gun 11834 | -5/Warlord | Identified Vortex Shotgun 11837 | -5/Warlord | Found Vortex Shotgun 11980 | -5/Warlord | Met Warlord 11998 | -5/Warlord | Opened Warlord's prototype stash 12011 | -5/Warlord | Found Prototype Processor 12011 | -5/Warlord | Identified Exp. Target Analyzer 12038 | -5/Warlord | Found Prototype Reactor 12172 | -5/Warlord | Warlord forces counterattacked 12492 | -5/Warlord | Opened side exit 12522 | -5/Warlord | Discovered new exit (range 9) 12530 | -5/Warlord | Identified exit to Proximity Caves 12531 | -5/Warlord | Entered Proximity Caves 12590 | -4/Proximity Caves | Lost 4 parts (1n3w) 12804 | -4/Proximity Caves | Build established: Hauler-Mutant 13115 | -4/Proximity Caves | Crushed by falling debris 13496 | -4/Proximity Caves | Learned location of Armory (-3) 13504 | -4/Proximity Caves | Discovered exit to Factory (range 2) 13538 | -4/Proximity Caves | Entered Factory 13538 | -4/Factory | Evolved 2 slots: Propulsion x1, Utility x1 13980 | -4/Factory | Build established: Scavenger-Mutant 14073 | -4/Factory | Identified exit to Upper Caves 14438 | -4/Factory | Fabricated Adv. Heavy Siege Treads (x2) 14444 | -4/Factory | Local fabrication network quarantined 14468 | -4/Factory | Fabricated Hcp. Storage Unit (x1) 14487 | -4/Factory | Fabricated System Restoration Module? 14490 | -4/Factory | Build established: Hauler-Gunner 15145 | -4/Factory | Build established: Hauler-Mutant 15203 | -4/Factory | Entered Upper Caves 15203 | -4/Upper Caves | Accompanied by 1 ally 15933 | -4/Upper Caves | Discovered new exit (range 5) 15937 | -4/Upper Caves | Identified exit to Upper Caves 15939 | -4/Upper Caves | Entered another Upper Caves area 15939 | -4/Upper Caves | Discovered new exit (range 11) 16457 | -4/Upper Caves | Learned location of 1 exit from Research 16458 | -4/Upper Caves | Learned location of 1 exit from Research 16462 | -4/Upper Caves | Discovered new exit (range 8) 16470 | -4/Upper Caves | Identified exit to Zhirov 16471 | -4/Upper Caves | Entered Zhirov 16471 | -4/Zhirov | Discovered new exit (range 3) 16526 | -4/Zhirov | Learned location of Quarantine (-2) 16526 | -4/Zhirov | Learned location of Testing (-3) 16526 | -4/Zhirov | Learned location of Command (-1) 16554 | -4/Zhirov | Found Alien Artifact 16554 | -4/Zhirov | Identified Integrated Dissipator 16554 | -4/Zhirov | Installed Integrated Dissipator, increased core heat dissipation (+2%) 16574 | -4/Zhirov | Found Alien Artifact 16718 | -4/Zhirov | Identified exit to Proximity Caves 16720 | -4/Zhirov | Entered Proximity Caves 16831 | -3/Proximity Caves | Spotted B-86 Titan 17539 | -3/Proximity Caves | Discovered new exit (range 3) 17547 | -3/Proximity Caves | Identified exit to Research 17574 | -3/Proximity Caves | Entered Research 17574 | -3/Research | Evolved 2 slots: Propulsion x1, Utility x1 17575 | -3/Research | Identified exit to Armory 17575 | -3/Research | Identified exit to Research 17774 | -3/Research | Revision forces began assault on 0b10 17808 | -3/Research | Discovered exit to Research (range 15) 17836 | -3/Research | Met up with Revision 17++ 17930 | -3/Research | Build established: Hauler-Gunner 18274 | -3/Research | Research terminal network offline 18287 | -3/Research | Discovered exit to Research (range 15) 18924 | -3/Research | Build established: Hauler-Mutant 19007 | -3/Research | Discovered new exit (range 14) 19090 | -3/Research | Identified exit to Testing 19091 | -3/Research | Entered Testing 19233 | -3/Testing | Build established: Hauler-Gunner 19238 | -3/Testing | Found Prototype Launcher 19238 | -3/Testing | Identified Tesla Bomb Launcher 19305 | -3/Testing | Found Com. Tesla Bomb Launcher 19434 | -3/Testing | Fabricated Exp. Signal Interpreter (x1) 19601 | -3/Testing | Build established: Hauler-Mutant 19865 | -3/Testing | Garrison activated, responded to threat 19906 | -3/Testing | System corruption reached 10% 19936 | -3/Testing | Lost 3 parts (1n2u) 20013 | -3/Testing | Found Exp. Thermal Shield 20102 | -3/Testing | Found Prototype Launcher 20102 | -3/Testing | Identified Adv. Micro-nuke Launcher 20209 | -3/Testing | Protovariant out of control (PD-EWZ8PCTAHU) 20209 | -3/Testing | Unleashed a protovariant (PD-EWZ8PCTAHU) 20231 | -3/Testing | Incoming assault squad redirected 20258 | -3/Testing | Discovered exit to Research (range 9) 20293 | -3/Testing | Identified Transdimensional Reconstructor 20293 | -3/Testing | Identified Vortex Chain Reactor 20419 | -3/Testing | Found Prototype Protection 20422 | -3/Testing | Found Prototype Protection 20422 | -3/Testing | Identified Med. Regenerative Plating 21638 | -3/Testing | First assault squad dispatched 21658 | -3/Testing | Incoming assault squad redirected 21870 | -3/Testing | Found Lgt. Regenerative Plating 21873 | -3/Testing | Found Lgt. Regenerative Plating 21907 | -3/Testing | Entered Research 21907 | -2/Research | Warlord forces began assault on 0b10 21907 | -2/Research | Evolved 2 slots: Utility x2 22017 | -2/Research | Research machine network offline 22211 | -2/Research | Spotted Striker 22262 | -2/Research | Found Prototype Launcher 22262 | -2/Research | Identified Enh. Gamma Bomb Array 22318 | -2/Research | Borebot progress halted 22318 | -2/Research | Borebot progress halted 22330 | -2/Research | Borebot progress halted 22425 | -2/Research | Borebot progress halted 22440 | -2/Research | Borebot progress halted 22467 | -2/Research | Discovered new exit (range 8) 22467 | -2/Research | Spotted B-90 Cyclops 22476 | -2/Research | Identified exit to Access 22650 | -2/Research | Spotted Executioner 22658 | -2/Research | Spotted Executioner 22676 | -2/Research | Destroyed Executioner 22712 | -2/Research | Destroyed Executioner 22819 | -2/Research | Spotted B-90 Cyclops 23063 | -2/Research | Spotted Striker 23087 | -2/Research | Destroyed Striker 23506 | -2/Research | Build established: Hauler-Skirmisher 23825 | -2/Research | Spotted Striker 23826 | -2/Research | Spotted Striker 23888 | -2/Research | Build established: Hauler-Mutant 23894 | -2/Research | Discovered exit to Access (range 17) 23938 | -2/Research | Spotted Striker 23939 | -2/Research | Spotted Striker 23942 | -2/Research | Warped through subspace 24098 | -2/Research | Warlord destroyed during the assault 24120 | -2/Research | Spotted Striker 24482 | -2/Research | Spotted Executioner 24537 | -2/Research | Spotted Striker 24864 | -2/Research | Entered Access 24864 | -1/Access | Evolved 2 slots: Utility x2 24990 | -1/Access | Energy Cycler disabled 25115 | -1/Access | Garrison activated, responded to threat 25240 | -1/Access | Incoming assault squad redirected 25321 | -1/Access | Build established: Scavenger-Skirmisher 25481 | -1/Access | Spotted B-99 Colossus 25733 | -1/Access | Spotted B-99 Colossus 25889 | -1/Access | Destroyed 9 combat bots 26133 | -1/Access | Spotted B-99 Colossus 26608 | -1/Access | Garrison activated, responded to threat 26614 | -1/Access | First assault squad dispatched 26642 | -1/Access | Incoming assault squad redirected 26652 | -1/Access | Lost 4 parts (1n2u1w) 26808 | -1/Access | High security lockdown imminent 26851 | -1/Access | Spotted Executioner 26851 | -1/Access | Spotted Executioner 26856 | -1/Access | Destroyed Executioner 26861 | -1/Access | Destroyed Executioner 26873 | -1/Access | Spotted Executioner 26879 | -1/Access | Released all parts (15) 26888 | -1/Access | High security lockdown engaged 26892 | -1/Access | Destroyed 7 combat bots 26893 | -1/Access | Core integrity fell below 50% 26912 | -1/Access | Core integrity fell below 20% 26937 | -1/Access | Destroyed by G-73 Enforcer with Phase Gun Last Messages --------------- 26897_ System corrupted: Adv. Micro-nuke Launcher failed to launch. 26898_ The unstable cave ceiling collapses. 26899_ Slug penetrates Wall. 26899_ Adv. Micro-nuke Launcher destroyed. 26902_ Acquired Enh. Nova Cannon. 26904_ Acquired System Shield. 26907_ S-43 Plague misfires. 26914_ Door malfunctions. 26914_ S-43 Plague destroyed. 26914_ Emergency Access malfunctions. 26915_ P-80 Master resets S-43 Plague, system corruption cleaned. 26916_ P-80 Master resets H-88 Terminator, system corruption cleaned. 26917_ Slug penetrates S-43 Plague. 26917_ S-43 Plague destroyed. 26917_ System Shield destroyed. 26925_ Slug penetrates Wall. 26936_ Triggered Alarm Trap. 26936_ An alarm sounds. 26936_ ALERT: Alarm triggered, assault force dispatched. 26937_ KI#OU NTLHEFCLQYZPHPOL4XERM3XPP6LDB2 Map ----- +----------------------------------------------------+ | ?????????????????????????????????????????????? | | ?????????????????????????????????????????????? | | ??????????????????????????????????????????????? | | ###??????????????????????????????????????????????? | | #????????????????????????????????????????????????? | | #????????????????????????????????????????????????? | | #????????????????????????????????????????????????? | | #????????????????????????????????????????????????? | | #????????????????????????????????????????????????? | | #????????????????????????????????????????????????? | | #????????????????????????????????????????????????? | | #????????????????????????????????????????????????? | | ?????????????????????????????????????????????????? | | ?????????????????????????????????????????????????? | | ?????????????????????????????????????????????????? | | ?????????????????????????????????????????????????? | | ?????????????????????????????????????????????????? | | ?????????????????????????????????????????????????? | | ??????????????????????###+######+##??????????????? | | ??????????????????????# #??????????????? | | ??????????????????????? #? ??????????? | | ??????????????????????? p # ?????????? | | ???????????????????????? /gg ???????????? | | ???????????????????????? #??????????????? | | ????????????????????????# #??????????????? | | ????????????????????????#@ #??????????????? | | ???????????############## #??????????????? | | ???????????# # A #??????????????? | | ???????????# # #??????????????? | | ???????????# + +??????????????? | | ???????????# # #??????????????? | | ???????????# # #??????????????? | | ???????????##########+### #??????????????? | | ????????????????????# #??????????????? | | ????????????????????# #??????????????? | | ????????????????????# #??????????????? | | ???????????????###### #??????????????? | | ?????????????? #??????????????? | | ??????????????#### #??????????????? | | ?????????????????# ##?????????????? | | ?????????????????# #?????????????? | | ?????????????????# #?????????????? | | ?????????????????# = #?????????????? | | ?????????????????# ]] #?????????????? | | ?????????????????# ]! #?????????????? | | ?????????????????# ############ #?????????????? | | ?????# ?????????? ?+ # #?????????????? | | ?????# ?????????????# ![ ! # #?????????????? | | ?????# ?????????????# ! + #?????????????? | | ????## #?????????####= # #?????????????? | +----------------------------------------------------+ Best States ------------- Heat Dissipation 134 Coolant Potential 65 Energy Generation 55 Energy Capacity 1440 Matter Stores 300 Matter Capacity 300 Sight Range 23 Robot Scan Range 20 Terrain Scan Density 10 Jamming Range 16 Armor Coverage 1200 Weapon Cycling 25 Evasion (%) 50 Targeting Accuracy 8 Target Analysis 12 Armor Integrity Analysis 33 Recoil Reduction 2 Offensive Hacking 12 Defensive Hacking 14 Item Schematics ----------------- Hcp. Storage Unit | -10/Materials | Hacked Adv. Sensor Array | -7/Factory | Scanalyzed Combat Drone Bay | -7/Data Miner | Free Lgt. Regenerative Plating | -7/Data Miner | Free Cmb. Gravmag System | -7/Data Miner | Free Exp. Terrain Scanner | -7/Data Miner | Free Exp. ECM Suite | -7/Data Miner | Free Mni. Smartbomb Launcher | -7/Data Miner | Free Plasma Sword | -7/Data Miner | Free Lrn. Sensor Array | -6/Factory | Hacked System Restoration Module | -5/Factory | Hacked Exp. Signal Interpreter | -4/Factory | Hacked Assault Drone Bay | -4/Zhirov | Free Exp. Heat Sink | -4/Zhirov | Free Exp. Optical Array | -4/Zhirov | Free Imp. Arc Thrower | -4/Zhirov | Free Robot Schematics ------------------ S-27 Virus | -7/Data Miner | Free G-50 Soldier | -7/Data Miner | Free G-67 Veteran | -7/Data Miner | Free L-41 Fighter | -7/Data Miner | Free X-72 Disruptor | -7/Data Miner | Free I-36 Angel | -7/Data Miner | Free Fabricated ------------ Mni. Smartbomb Launcher | x1 | -6/Factory Lrn. Sensor Array | x1 | -5/Factory Adv. Heavy Siege Treads | x2 | -4/Factory | Preloaded Hcp. Storage Unit | x1 | -4/Factory System Restoration Module | x2 | -4/Factory Exp. Signal Interpreter | x1 | -3/Testing Alien Tech Used ----------------- Core Expander Integrated Dissipator Transdimensional Reconstructor Achievements -------------- Revolutionary Research Challenges ------------ None Game ------ Seed MappingCoolantProtomatter Manual? 0 Play Time 03:28:59 Cumulative 599.1 hours Start 2019.12.25 @ 08:33:29 End 2019.12.26 @ 08:12:03 Sessions 5 Manual Loads 0 Difficulty Rogue Special Mode None Game No. 529 Rogue 489 Adventurer 40 Explorer 0 Win Type - Total 38 Types 24/0/12/2/0/0/0 Lore% 87 Gallery% 89 Achievement% 69 Wizard Run 0 Options --------- ASCII 0 Keyboard 0 Movement Numpad Keybinds 0 Fullscreen 0 Font 16/Terminus Map View 76x50 Tactical HUD 1 Map Filters NONE Filters NONE Steam 1 RUN: 6426d1c4-6c74-417e-a47b-ce0a24645eaa